[Event "Najdorf Memorial-A 2022"]
[Site "Warsaw"]
[Date "2022.07.16"]
[Round "8.9"]
[White "Markiewicz, Jerzy"]
[Black "Podgorski, Maciej"]
[Result "1/2-1/2"]
[ECO "B06"]
[WhiteElo "2205"]
[BlackElo "1967"]
[Annotator "ChessBase"]
[PlyCount "79"]
[EventDate "2022.07.09"]
[EventType "swiss"]
[EventCountry "POL"]
[SourceTitle "playchess.com"]
[Source "ChessBase"]
[SourceQuality "1"]
[TimeControl "40/5400+30:1800+30"]

1. e4 {[%emt 0:00:13]} g6 {[%emt 0:00:06]} 2. d4 Bg7 {[%emt 0:00:04]} 3. Nc3 {[%emt 0:00:19]} d6 {[%emt 0:00:04]} 4. Be3 {[%emt 0:03:12]} a6 {[%emt 0:00:05]} 5. Qd2 {[%emt 0:00:09]} b5 {[%emt 0:00:39]} 6. f3 {[%emt 0:00:08]} Nd7 {[%emt 0:01:30]} 7. a4 {[%emt 0:06:52]} b4 {[%emt 0:00:33]} 8. Na2 {[%emt 0:00:10]} a5 {[%emt 0:03:15]} 9. c3 {[%emt 0:00:13]} bxc3 {[%emt 0:02:57]} 10. Nxc3 {[%emt 0:00:13]} Bb7 {[%emt 0:10:06]} 11. d5 {[%emt 0:05:19]} Ngf6 {[%emt 0:02:00]} 12. Bb5 {[%emt 0:00:14]} O-O {[%emt 0:01:03]} 13. Nge2 {[%emt 0:00:07]} e6 {[%emt 0:03:08]} 14. dxe6 {[%emt 0:08:29]} fxe6 {[%emt 0:00:05]} 15. Nf4 {[%emt 0:05:09]} Qe7 {[%emt 0:07:27]} 16. Bc4 {[%emt 0:02:21]} d5 {[%emt 0:17:09]} 17. exd5 {[%emt 0:03:37]} Ne5 {[%emt 0:00:40]} 18. Ba2 {[%emt 0:12:03]} exd5 {[%emt 0:08:40]} 19. Nfxd5 {[%emt 0:06:54]} Nxd5 {[%emt 0:01:17]} 20. Nxd5 {[%emt 0:00:17]} Bxd5 {[%emt 0:01:15]} 21. Qxd5+ {[%emt 0:01:43]} Kh8 {[%emt 0:00:33]} 22. O-O {[%emt 0:00:31]} c6 {[%emt 0:06:51]} 23. Qe4 {[%emt 0:05:15]} Rab8 {[%emt 0:01:30]} 24. f4 {[%emt 0:18:03]} Rb4 {[%emt 0:01:05]} 25. Qc2 {[%emt 0:00:06]} Rxb2 {[%emt 0:24:07]} 26. Qc5 {[%emt 0:03:14]} Qxc5 {[%emt 0:03:31]} 27. Bxc5 {[%emt 0:00:08]} Ng4 {[%emt 0:03:26]} 28. Be6 {[%emt 0:01:01]} h5 {[%emt 0:00:45]} 29. Bxg4 {[%emt 0:00:30]} hxg4 {[%emt 0:00:05]} 30. Bxf8 {[%emt 0:00:05]} Bxf8 {[%emt 0:00:03]} 31. Rac1 {[%emt 0:00:13]} c5 {[%emt 0:00:08]} 32. f5 {[%emt 0:00:31]} gxf5 {[%emt 0:00:11]} 33. Rxf5 {[%emt 0:00:07]} Bh6 {[%emt 0:01:03]} 34. Re1 {[%emt 0:00:12]} c4 {[%emt 0:00:23]} 35. Rc5 {[%emt 0:00:48]} Rb4 {[%emt 0:01:34]} 36. Rc7 {[%emt 0:00:09]} Bf8 {[%emt 0:00:40]} 37. Re8 {[%emt 0:00:12]} Kg8 {[%emt 0:00:12]} 38. Rcc8 {[%emt 0:00:08]} Rxa4 {[%emt 0:00:07]} 39. Rxf8+ {[%emt 0:00:07]} Kg7 {[%emt 0:00:02]} 40. Rf4 {[%emt 0:00:00]} 1/2-1/2

[Event "Najdorf Memorial-A 2022"]
[Site "Warsaw"]
[Date "2022.07.16"]
[Round "8.10"]
[White "Shilov, Sergej"]
[Black "Kutowski, Marcel"]
[Result "0-1"]
[ECO "A27"]
[WhiteElo "2048"]
[BlackElo "1961"]
[Annotator "ChessBase"]
[PlyCount "124"]
[EventDate "2022.07.09"]
[EventType "swiss"]
[EventCountry "POL"]
[SourceTitle "playchess.com"]
[Source "ChessBase"]
[SourceQuality "1"]
[TimeControl "40/5400+30:1800+30"]

1. c4 e5 {[%emt 0:00:24]} 2. Nc3 {[%emt 0:00:30]} Nc6 {[%emt 0:00:46]} 3. Nf3 {[%emt 0:01:48]} g6 {[%emt 0:00:50]} 4. g3 {[%emt 0:03:27]} Bg7 {[%emt 0:00:25]} 5. Bg2 {[%emt 0:00:05]} d6 {[%emt 0:00:37]} 6. d3 {[%emt 0:00:47]} f5 {[%emt 0:02:19]} 7. Rb1 {[%emt 0:02:57]} h6 {[%emt 0:02:27]} 8. Bd2 {[%emt 0:10:02]} g5 {[%emt 0:05:13]} 9. b4 {[%emt 0:01:07]} Nf6 {[%emt 0:00:29]} 10. b5 {[%emt 0:08:02]} Ne7 {[%emt 0:01:00]} 11. h4 {[%emt 0:01:47]} g4 {[%emt 0:02:22]} 12. Nh2 {[%emt 0:00:07]} O-O {[%emt 0:06:56]} 13. Qc1 {[%emt 0:03:42]} f4 {[%emt 0:06:47]} 14. Ne4 {[%emt 0:04:16]} Nf5 {[%emt 0:06:22]} 15. Nxf6+ {[%emt 0:07:31]} Qxf6 {[%emt 0:02:33]} 16. Bd5+ {[%emt 0:01:42]} Kh8 {[%emt 0:02:13]} 17. O-O {[%emt 0:09:06]} h5 {[%emt 0:21:17]} 18. e3 {[%emt 0:00:25]} f3 {[%emt 0:02:26]} 19. Be4 {[%emt 0:01:10]} Nxh4 {[%emt 0:02:37]} 20. gxh4 {[%emt 0:00:17]} Qxh4 {[%emt 0:01:07]} 21. Kh1 {[%emt 0:00:18]} Be6 {[%emt 0:08:58]} 22. Bxb7 {[%emt 0:03:24]} Rae8 {[%emt 0:01:10]} 23. Be4 {[%emt 0:00:19]} Qg5 {[%emt 0:04:18]} 24. Rg1 {[%emt 0:01:21]} h4 {[%emt 0:00:53]} 25. Rxg4 {[%emt 0:08:01]} Bxg4 {[%emt 0:03:08]} 26. Qg1 {[%emt 0:01:31]} Bf6 {[%emt 0:00:52]} 27. Qxg4 {[%emt 0:00:36]} Qh6 {[%emt 0:00:06]} 28. Qh3 {[%emt 0:00:53]} Rg8 {[%emt 0:01:39]} 29. Bxf3 {[%emt 0:01:14]} Ref8 {[%emt 0:00:56]} 30. Bd5 {[%emt 0:00:47]} Rg7 {[%emt 0:00:22]} 31. Ng4 {[%emt 0:02:32]} Qg6 {[%emt 0:01:17]} 32. Nxf6 {[%emt 0:03:19]} Qxf6 {[%emt 0:01:32]} 33. Rf1 {[%emt 0:01:52]} Qg6 {[%emt 0:01:46]} 34. Be4 {[%emt 0:01:22]} Qh5 {[%emt 0:00:09]} 35. Bc3 {[%emt 0:07:47]} Rg5 {[%emt 0:07:03]} 36. d4 {[%emt 0:04:05]} Rg4 {[%emt 0:00:22]} 37. Bd5 {[%emt 0:01:42]} e4 {[%emt 0:00:21]} 38. Be6 {[%emt 0:00:28]} Rg6 {[%emt 0:00:35]} 39. d5+ {[%emt 0:03:41]} Kh7 {[%emt 0:00:05]} 40. f4 {[%emt 0:00:00]} exf3 {[%emt 0:00:00]} 41. e4 {[%emt 0:04:17]} Qg5 {[%emt 0:04:37]} 42. Rd1 {[%emt 0:04:37]} f2 {[%emt 0:04:41]} 43. Bd4 {[%emt 0:01:30]} Qh5 {[%emt 0:08:14]} 44. Rf1 {[%emt 0:06:09]} Rf3 {[%emt 0:05:24]} 45. Qh2 {[%emt 0:01:59]} h3 {[%emt 0:00:07]} 46. Rxf2 {[%emt 0:06:56]} Rxf2 {[%emt 0:00:26]} 47. Qxf2 {[%emt 0:00:06]} Qd1+ {[%emt 0:00:17]} 48. Kh2 {[%emt 0:00:34]} Rg2+ {[%emt 0:00:09]} 49. Qxg2 {[%emt 0:00:10]} hxg2 {[%emt 0:00:16]} 50. Bg1 {[%emt 0:00:25]} Qf1 {[%emt 0:01:14]} 51. Bf5+ {[%emt 0:01:57]} Kh6 {[%emt 0:00:40]} 52. a4 {[%emt 0:00:29]} Kg5 {[%emt 0:01:26]} 53. Bh3 {[%emt 0:01:07]} Qf4+ {[%emt 0:00:29]} 54. Kxg2 {[%emt 0:00:10]} Qxe4+ {[%emt 0:00:04]} 55. Kg3 {[%emt 0:00:35]} Qh4+ {[%emt 0:01:14]} 56. Kg2 {[%emt 0:00:52]} Qxc4 {[%emt 0:00:14]} 57. Be3+ {[%emt 0:00:50]} Kf6 {[%emt 0:00:21]} 58. Bxa7 {[%emt 0:00:23]} Qxd5+ {[%emt 0:00:12]} 59. Kg1 {[%emt 0:02:27]} Qd1+ {[%emt 0:00:15]} 60. Kh2 {[%emt 0:00:56]} Qxa4 {[%emt 0:00:17]} 61. b6 {[%emt 0:00:18]} Qf4+ {[%emt 0:00:28]} 62. Kh1 {[%emt 0:00:38]} Qc1+ {[%emt 0:00:16]} 0-1

[Event "Najdorf Memorial-A 2022"]
[Site "Warsaw"]
[Date "2022.07.16"]
[Round "8.11"]
[White "Celinski, Kamil"]
[Black "Gorkiewicz, Mateusz"]
[Result "1-0"]
[ECO "C95"]
[WhiteElo "1876"]
[BlackElo "2023"]
[Annotator "ChessBase"]
[PlyCount "95"]
[EventDate "2022.07.09"]
[EventType "swiss"]
[EventCountry "POL"]
[SourceTitle "playchess.com"]
[Source "ChessBase"]
[SourceQuality "1"]
[TimeControl "40/5400+30:1800+30"]

1. e4 {[%emt 0:00:04]} e5 {[%emt 0:00:10]} 2. Nf3 {[%emt 0:00:05]} Nc6 {[%emt 0:00:07]} 3. Bb5 {[%emt 0:00:36]} a6 {[%emt 0:00:13]} 4. Ba4 {[%emt 0:00:04]} Nf6 {[%emt 0:00:28]} 5. O-O {[%emt 0:00:06]} Be7 {[%emt 0:00:17]} 6. Re1 {[%emt 0:00:04]} b5 {[%emt 0:00:11]} 7. Bb3 {[%emt 0:00:04]} d6 {[%emt 0:00:10]} 8. c3 {[%emt 0:00:03]} O-O {[%emt 0:00:12]} 9. h3 {[%emt 0:00:02]} Nb8 {[%emt 0:00:22]} 10. d4 {[%emt 0:00:10]} Nbd7 {[%emt 0:00:11]} 11. Nbd2 {[%emt 0:00:27]} Bb7 {[%emt 0:00:15]} 12. Bc2 {[%emt 0:00:15]} Re8 {[%emt 0:00:34]} 13. Nf1 {[%emt 0:01:07]} Bf8 {[%emt 0:00:00]} 14. Ng3 {[%emt 0:00:23]} g6 15. b3 {[%emt 0:00:16]} Bg7 {[%emt 0:00:55]} 16. d5 {[%emt 0:00:28]} Rc8 {[%emt 0:00:34]} 17. Be3 {[%emt 0:14:55]} c6 {[%emt 0:00:43]} 18. c4 {[%emt 0:00:14]} Nb6 {[%emt 0:00:35]} 19. Bd3 {[%emt 0:01:50]} cxd5 {[%emt 0:01:51]} 20. cxd5 {[%emt 0:16:40]} Nbxd5 {[%emt 0:01:32]} 21. exd5 {[%emt 0:00:36]} e4 {[%emt 0:00:26]} 22. Bg5 {[%emt 0:00:48]} exd3 {[%emt 0:06:58]} 23. Ne4 {[%emt 0:03:12]} Rxe4 {[%emt 0:29:17]} 24. Rxe4 {[%emt 0:00:25]} h6 {[%emt 0:13:19]} 25. Bxf6 {[%emt 0:03:31]} Bxf6 {[%emt 0:00:34]} 26. Rc1 {[%emt 0:01:00]} Rxc1 {[%emt 0:04:48]} 27. Qxc1 {[%emt 0:00:47]} Bxd5 {[%emt 0:00:31]} 28. Re3 {[%emt 0:02:40]} Kg7 {[%emt 0:17:51]} 29. Qd1 {[%emt 0:05:49]} Bb7 {[%emt 0:02:12]} 30. Rxd3 {[%emt 0:01:28]} d5 {[%emt 0:00:30]} 31. Nd4 {[%emt 0:08:04]} Qa5 {[%emt 0:00:19]} 32. Qd2 {[%emt 0:02:27]} Qb6 {[%emt 0:00:27]} 33. Ne2 {[%emt 0:02:29]} Be5 {[%emt 0:01:12]} 34. Qe3 {[%emt 0:06:44]} Qc7 {[%emt 0:00:54]} 35. f4 {[%emt 0:09:57]} Bf6 {[%emt 0:00:38]} 36. f5 {[%emt 0:04:08]} Bg5 {[%emt 0:08:42]} 37. Qf2 {[%emt 0:03:50]} Qe7 {[%emt 0:05:20]} 38. fxg6 {[%emt 0:02:22]} fxg6 {[%emt 0:00:17]} 39. Nd4 {[%emt 0:03:50]} b4 {[%emt 0:05:38]} 40. Rg3 {[%emt 0:00:00]} Qe4 {[%emt 0:00:00]} 41. h4 {[%emt 0:08:00]} Bc1 {[%emt 0:25:25]} 42. Nf5+ {[%emt 0:01:33]} Kh7 {[%emt 0:00:23]} 43. Nd6 {[%emt 0:04:19]} Qe7 {[%emt 0:00:20]} 44. Nxb7 {[%emt 0:00:32]} Qxb7 {[%emt 0:00:10]} 45. Rf3 {[%emt 0:00:41]} Qb8 {[%emt 0:02:39]} 46. Rf7+ {[%emt 0:01:44]} Kg8 {[%emt 0:00:07]} 47. Qf6 {[%emt 0:00:15]} Be3+ {[%emt 0:00:14]} 48. Kh1 {[%emt 0:00:05]} 1-0

[Event "Najdorf Memorial-A 2022"]
[Site "Warsaw"]
[Date "2022.07.16"]
[Round "8.12"]
[White "Sowul, Bartosz"]
[Black "Harazinska, Magdalena"]
[Result "1-0"]
[ECO "B23"]
[WhiteElo "2283"]
[BlackElo "1976"]
[Annotator "ChessBase"]
[PlyCount "87"]
[EventDate "2022.07.09"]
[EventType "swiss"]
[EventCountry "POL"]
[SourceTitle "playchess.com"]
[Source "ChessBase"]
[SourceQuality "1"]
[TimeControl "40/5400+30:1800+30"]

1. e4 {[%emt 0:00:32]} c5 {[%emt 0:00:22]} 2. Nc3 {[%emt 0:00:05]} a6 {[%emt 0:00:41]} 3. Nf3 {[%emt 0:01:03]} d6 {[%emt 0:00:29]} 4. g3 {[%emt 0:00:09]} Nf6 {[%emt 0:03:28]} 5. Bg2 {[%emt 0:00:48]} g6 {[%emt 0:04:12]} 6. d4 {[%emt 0:03:47]} cxd4 {[%emt 0:00:15]} 7. Nxd4 {[%emt 0:00:06]} Bg7 {[%emt 0:03:03]} 8. O-O {[%emt 0:02:04]} O-O {[%emt 0:01:59]} 9. h3 {[%emt 0:01:19]} Qc7 {[%emt 0:04:55]} 10. a4 {[%emt 0:07:25]} Nc6 {[%emt 0:02:38]} 11. Nde2 {[%emt 0:01:16]} b6 {[%emt 0:10:21]} 12. Be3 {[%emt 0:03:26]} Bb7 {[%emt 0:01:24]} 13. Qc1 {[%emt 0:02:11]} Rfd8 {[%emt 0:08:54]} 14. Rd1 {[%emt 0:03:45]} Nb4 {[%emt 0:09:42]} 15. Rd4 {[%emt 0:04:25]} a5 {[%emt 0:02:04]} 16. Rd2 {[%emt 0:06:44]} Nd7 {[%emt 0:09:33]} 17. Nd4 {[%emt 0:12:35]} Nc5 {[%emt 0:04:04]} 18. Rd1 {[%emt 0:05:39]} Rac8 {[%emt 0:03:01]} 19. Ndb5 {[%emt 0:08:31]} Qd7 {[%emt 0:02:53]} 20. Bd4 {[%emt 0:02:07]} Bxd4 {[%emt 0:04:04]} 21. Rxd4 {[%emt 0:00:15]} Qe6 {[%emt 0:02:47]} 22. Qd1 {[%emt 0:03:44]} Qf6 {[%emt 0:06:05]} 23. Ra3 {[%emt 0:07:19]} h5 {[%emt 0:06:36]} 24. h4 {[%emt 0:03:33]} Kh7 {[%emt 0:00:55]} 25. f4 {[%emt 0:05:31]} Qh8 {[%emt 0:04:05]} 26. Bh3 {[%emt 0:01:52]} Rb8 {[%emt 0:00:24]} 27. Nd5 {[%emt 0:03:09]} Nxd5 {[%emt 0:00:47]} 28. exd5 {[%emt 0:00:07]} Qf6 {[%emt 0:01:55]} 29. Re3 {[%emt 0:01:56]} Bc8 {[%emt 0:00:34]} 30. Bxc8 {[%emt 0:03:03]} Rbxc8 {[%emt 0:00:01]} 31. c3 {[%emt 0:00:15]} Rd7 {[%emt 0:00:48]} 32. Rc4 {[%emt 0:01:56]} Ra8 {[%emt 0:00:13]} 33. Nd4 {[%emt 0:00:36]} e6 {[%emt 0:01:05]} 34. dxe6 {[%emt 0:00:55]} fxe6 {[%emt 0:00:18]} 35. Nf3 {[%emt 0:01:14]} Kh6 {[%emt 0:00:31]} 36. Rd4 {[%emt 0:01:31]} Rad8 {[%emt 0:01:21]} 37. b4 {[%emt 0:00:54]} Nb7 {[%emt 0:00:09]} 38. Qd2 {[%emt 0:01:15]} Qf5 {[%emt 0:00:27]} 39. Kg2 {[%emt 0:01:06]} Re8 {[%emt 0:00:59]} 40. Re5 {[%emt 0:00:00]} Qf6 {[%emt 0:00:00]} 41. f5+ {[%emt 0:07:13]} Kg7 {[%emt 0:02:35]} 42. fxg6 {[%emt 0:00:54]} Rh8 {[%emt 0:08:47]} 43. Rf4 {[%emt 0:01:16]} Qd8 {[%emt 0:00:31]} 44. Rxe6 {[%emt 0:00:19]} 1-0

[Event "Najdorf Memorial-A 2022"]
[Site "Warsaw"]
[Date "2022.07.16"]
[Round "8.13"]
[White "Jedrusik, Adam"]
[Black "Padalka, Artem"]
[Result "1-0"]
[ECO "E81"]
[WhiteElo "1960"]
[BlackElo "2204"]
[Annotator "ChessBase"]
[PlyCount "120"]
[EventDate "2022.07.09"]
[EventType "swiss"]
[EventCountry "POL"]
[SourceTitle "playchess.com"]
[Source "ChessBase"]
[SourceQuality "1"]
[TimeControl "40/5400+30:1800+30"]

1. d4 {[%emt 0:00:02]} Nf6 {[%emt 0:26:58]} 2. c4 {[%emt 0:00:02]} g6 {[%emt 0:00:25]} 3. Nc3 {[%emt 0:00:05]} Bg7 {[%emt 0:00:06]} 4. e4 {[%emt 0:00:04]} d6 {[%emt 0:00:08]} 5. f3 {[%emt 0:00:03]} O-O {[%emt 0:00:06]} 6. Be3 {[%emt 0:00:02]} c5 {[%emt 0:05:01]} 7. Nge2 {[%emt 0:00:01]} Nc6 {[%emt 0:02:05]} 8. d5 {[%emt 0:00:14]} Ne5 {[%emt 0:00:15]} 9. Ng3 {[%emt 0:00:03]} h5 {[%emt 0:02:29]} 10. Be2 {[%emt 0:00:02]} a6 {[%emt 0:09:16]} 11. a4 {[%emt 0:00:26]} e6 {[%emt 0:05:26]} 12. O-O {[%emt 0:00:31]} exd5 {[%emt 0:00:19]} 13. cxd5 {[%emt 0:00:02]} Bd7 {[%emt 0:02:27]} 14. h3 {[%emt 0:05:29]} Bc8 {[%emt 0:06:38]} 15. Qd2 {[%emt 0:10:36]} Qa5 {[%emt 0:00:23]} 16. Bh6 {[%emt 0:01:43]} Qb4 {[%emt 0:00:24]} 17. Bxg7 {[%emt 0:00:47]} Kxg7 {[%emt 0:00:02]} 18. f4 {[%emt 0:01:18]} Ned7 {[%emt 0:07:10]} 19. e5 {[%emt 0:05:35]} dxe5 {[%emt 0:09:41]} 20. fxe5 {[%emt 0:00:14]} Nxe5 {[%emt 0:00:01]} 21. Rf4 {[%emt 0:03:00]} Qb6 {[%emt 0:01:08]} 22. Raf1 {[%emt 0:02:52]} Nh7 {[%emt 0:02:17]} 23. Qe3 {[%emt 0:05:28]} Nd7 {[%emt 0:04:27]} 24. Qe7 {[%emt 0:11:16]} Ndf6 {[%emt 0:00:32]} 25. Nce4 {[%emt 0:03:37]} Re8 {[%emt 0:02:14]} 26. Rxf6 {[%emt 0:14:35]} Rxe7 {[%emt 0:00:19]} 27. Rxb6 {[%emt 0:00:10]} h4 {[%emt 0:00:23]} 28. d6 {[%emt 0:04:29]} Re5 {[%emt 0:00:05]} 29. Bc4 {[%emt 0:01:12]} f5 {[%emt 0:02:29]} 30. d7 {[%emt 0:00:22]} Bxd7 {[%emt 0:00:06]} 31. Rxb7 {[%emt 0:00:04]} Nf8 {[%emt 0:00:28]} 32. Rd1 {[%emt 0:01:24]} fxe4 {[%emt 0:03:23]} 33. Rbxd7+ {[%emt 0:01:00]} Nxd7 {[%emt 0:00:01]} 34. Rxd7+ {[%emt 0:00:06]} Kh6 {[%emt 0:00:41]} 35. Ne2 {[%emt 0:01:16]} Rb8 {[%emt 0:03:07]} 36. b3 {[%emt 0:00:08]} Rb6 {[%emt 0:03:02]} 37. Kf2 {[%emt 0:04:35]} e3+ {[%emt 0:00:12]} 38. Ke1 {[%emt 0:00:05]} Rf6 {[%emt 0:00:41]} 39. Rd3 {[%emt 0:00:08]} a5 {[%emt 0:01:43]} 40. Rc3 {[%emt 0:00:00]} Rff5 {[%emt 0:00:00]} 41. Ng1 {[%emt 0:07:02]} Rf2 {[%emt 0:13:23]} 42. Rxe3 {[%emt 0:00:53]} Ref5 {[%emt 0:00:09]} 43. Bd3 {[%emt 0:04:37]} Rf6 {[%emt 0:03:09]} 44. Rf3 {[%emt 0:00:09]} R6xf3 {[%emt 0:00:26]} 45. gxf3 {[%emt 0:00:02]} Rb2 {[%emt 0:06:12]} 46. Bc4 {[%emt 0:00:05]} Kg5 {[%emt 0:01:39]} 47. Ne2 {[%emt 0:00:09]} Kf5 {[%emt 0:01:08]} 48. Kf2 {[%emt 0:00:02]} g5 {[%emt 0:01:38]} 49. Ke3 {[%emt 0:00:36]} Ke5 {[%emt 0:00:02]} 50. f4+ {[%emt 0:06:50]} gxf4+ {[%emt 0:00:02]} 51. Nxf4 {[%emt 0:00:04]} Rh2 {[%emt 0:01:56]} 52. Kf3 {[%emt 0:01:50]} Kf5 {[%emt 0:02:26]} 53. Be6+ {[%emt 0:01:09]} Ke5 {[%emt 0:00:25]} 54. Bg8 {[%emt 0:01:13]} Kf5 {[%emt 0:03:10]} 55. Bc4 {[%emt 0:00:46]} Rh1 {[%emt 0:02:23]} 56. Kg2 {[%emt 0:02:49]} Rd1 {[%emt 0:02:16]} 57. Nd3 {[%emt 0:00:11]} Rd2+ {[%emt 0:00:35]} 58. Kf3 {[%emt 0:00:02]} Rh2 {[%emt 0:00:13]} 59. Nf2 {[%emt 0:00:06]} Kg5 {[%emt 0:00:17]} 60. Bf1 {[%emt 0:00:21]} Kf5 {[%emt 0:00:32]} 1-0

[Event "Najdorf Memorial-A 2022"]
[Site "Warsaw"]
[Date "2022.07.16"]
[Round "8.14"]
[White "Dalkowski, Rafal"]
[Black "Owoc, Jakub"]
[Result "1-0"]
[ECO "E73"]
[WhiteElo "2120"]
[BlackElo "1756"]
[Annotator "ChessBase"]
[PlyCount "93"]
[EventDate "2022.07.09"]
[EventType "swiss"]
[EventCountry "POL"]
[SourceTitle "playchess.com"]
[Source "ChessBase"]
[SourceQuality "1"]
[TimeControl "40/5400+30:1800+30"]

1. d4 {[%emt 0:00:03]} Nf6 {[%emt 0:00:05]} 2. c4 {[%emt 0:00:06]} g6 {[%emt 0:00:05]} 3. Nc3 {[%emt 0:00:07]} Bg7 {[%emt 0:00:05]} 4. e4 {[%emt 0:00:06]} d6 {[%emt 0:00:04]} 5. Be2 {[%emt 0:00:30]} O-O {[%emt 0:00:07]} 6. Bg5 {[%emt 0:00:04]} c5 7. d5 h6 {[%emt 0:01:36]} 8. Be3 {[%emt 0:00:49]} a6 {[%emt 0:12:12]} 9. a4 {[%emt 0:02:30]} Qa5 {[%emt 0:08:05]} 10. Bd2 {[%emt 0:00:32]} e6 {[%emt 0:09:20]} 11. h3 {[%emt 0:07:50]} Qc7 {[%emt 0:02:36]} 12. Nf3 {[%emt 0:01:41]} exd5 {[%emt 0:01:25]} 13. exd5 {[%emt 0:00:33]} Bf5 {[%emt 0:04:19]} 14. Nh4 {[%emt 0:02:23]} Bd7 {[%emt 0:06:00]} 15. Qc2 {[%emt 0:01:45]} Qd8 {[%emt 0:02:42]} 16. g3 {[%emt 0:05:51]} Qc8 {[%emt 0:05:07]} 17. g4 {[%emt 0:01:46]} Re8 {[%emt 0:04:22]} 18. Be3 {[%emt 0:02:40]} Qd8 {[%emt 0:01:52]} 19. Ng2 {[%emt 0:04:28]} Qa5 {[%emt 0:00:21]} 20. Bd2 {[%emt 0:02:16]} h5 {[%emt 0:01:43]} 21. Ne3 {[%emt 0:07:07]} hxg4 {[%emt 0:07:12]} 22. hxg4 {[%emt 0:03:49]} Nxg4 {[%emt 0:00:05]} 23. Nxg4 {[%emt 0:04:19]} Bxg4 {[%emt 0:00:09]} 24. Ne4 {[%emt 0:00:34]} Qd8 {[%emt 0:00:04]} 25. Bxg4 {[%emt 0:00:51]} f5 {[%emt 0:00:03]} 26. Bf3 {[%emt 0:02:41]} fxe4 {[%emt 0:02:44]} 27. Bxe4 {[%emt 0:05:15]} Qf6 {[%emt 0:00:14]} 28. Be3 {[%emt 0:06:36]} Qxb2 {[%emt 0:01:57]} 29. Rb1 {[%emt 0:00:59]} Qxc2 {[%emt 0:03:14]} 30. Bxc2 {[%emt 0:00:11]} b5 {[%emt 0:00:14]} 31. Bxg6 {[%emt 0:03:10]} Re7 {[%emt 0:00:36]} 32. Kd2 {[%emt 0:08:36]} Nd7 {[%emt 0:02:54]} 33. axb5 {[%emt 0:07:24]} axb5 {[%emt 0:00:16]} 34. cxb5 {[%emt 0:03:56]} Ra2+ {[%emt 0:01:10]} 35. Bc2 {[%emt 0:02:02]} Nb6 {[%emt 0:00:43]} 36. Kd1 {[%emt 0:00:47]} Re5 {[%emt 0:01:21]} 37. Kc1 {[%emt 0:01:35]} Re7 {[%emt 0:05:19]} 38. Rg1 {[%emt 0:03:21]} Kf7 {[%emt 0:04:49]} 39. Rg4 {[%emt 0:02:48]} Ke8 {[%emt 0:02:22]} 40. Rg6 {[%emt 0:00:00]} Kd7 {[%emt 0:00:00]} 41. Bb3 {[%emt 0:07:29]} Ra5 {[%emt 0:03:51]} 42. Bxc5 {[%emt 0:02:14]} dxc5 {[%emt 0:04:39]} 43. Rxb6 {[%emt 0:00:12]} Ra7 {[%emt 0:03:29]} 44. Re6 {[%emt 0:03:29]} Rf7 {[%emt 0:00:42]} 45. b6 {[%emt 0:00:46]} Rb7 {[%emt 0:01:08]} 46. Ba4+ {[%emt 0:00:15]} Kd8 {[%emt 0:00:19]} 47. Re8# {[%emt 0:00:10]} 1-0

[Event "Najdorf Memorial-A 2022"]
[Site "Warsaw"]
[Date "2022.07.16"]
[Round "8.15"]
[White "Ratajczak, Hubert"]
[Black "Raczek, Krzysztof"]
[Result "0-1"]
[ECO "A10"]
[WhiteElo "1943"]
[BlackElo "2114"]
[Annotator "ChessBase"]
[PlyCount "87"]
[EventDate "2022.07.09"]
[EventType "swiss"]
[EventCountry "POL"]
[SourceTitle "playchess.com"]
[Source "ChessBase"]
[SourceQuality "1"]
[TimeControl "40/5400+30:1800+30"]

1. c4 {[%emt 0:00:03]} g6 {[%emt 0:00:12]} 2. Nc3 {[%emt 0:00:22]} Bg7 {[%emt 0:00:02]} 3. g3 {[%emt 0:00:07]} Nf6 {[%emt 0:00:10]} 4. Bg2 {[%emt 0:00:01]} O-O {[%emt 0:00:07]} 5. Nf3 {[%emt 0:00:03]} d6 {[%emt 0:00:07]} 6. O-O {[%emt 0:00:12]} Nbd7 {[%emt 0:01:36]} 7. d3 {[%emt 0:00:59]} e5 {[%emt 0:00:59]} 8. b4 {[%emt 0:01:30]} a5 {[%emt 0:06:08]} 9. b5 {[%emt 0:00:08]} Re8 {[%emt 0:00:19]} 10. Nd2 {[%emt 0:01:00]} Nf8 {[%emt 0:10:11]} 11. e3 {[%emt 0:07:59]} Rb8 {[%emt 0:00:40]} 12. Rb1 {[%emt 0:08:33]} Be6 {[%emt 0:02:11]} 13. Nb3 {[%emt 0:04:10]} b6 {[%emt 0:03:59]} 14. e4 {[%emt 0:01:27]} N6d7 {[%emt 0:04:36]} 15. Ne2 {[%emt 0:05:07]} Nc5 {[%emt 0:01:31]} 16. d4 {[%emt 0:07:17]} exd4 {[%emt 0:01:58]} 17. Nbxd4 {[%emt 0:00:09]} Bxc4 {[%emt 0:00:38]} 18. Nc6 {[%emt 0:00:11]} Qc8 {[%emt 0:01:14]} 19. Nxb8 {[%emt 0:00:09]} Qxb8 {[%emt 0:00:37]} 20. Bb2 {[%emt 0:01:14]} Bxb5 {[%emt 0:23:50]} 21. Bxg7 {[%emt 0:00:39]} Bxe2 {[%emt 0:00:04]} 22. Qxe2 {[%emt 0:00:21]} Kxg7 {[%emt 0:00:04]} 23. f4 {[%emt 0:03:48]} Nfd7 {[%emt 0:01:15]} 24. Rbe1 {[%emt 0:03:54]} Qd8 {[%emt 0:02:32]} 25. Qc4 {[%emt 0:05:49]} Qe7 {[%emt 0:02:05]} 26. Bh3 {[%emt 0:06:26]} Kg8 {[%emt 0:04:27]} 27. Qd5 {[%emt 0:02:14]} Nf6 {[%emt 0:12:36]} 28. Qc6 {[%emt 0:00:06]} Nfxe4 {[%emt 0:03:31]} 29. Re3 {[%emt 0:01:25]} f5 {[%emt 0:01:31]} 30. g4 {[%emt 0:01:34]} Kh8 {[%emt 0:02:07]} 31. Qd5 {[%emt 0:04:06]} Rf8 {[%emt 0:02:52]} 32. a4 {[%emt 0:04:45]} Qf7 {[%emt 0:01:00]} 33. Qd4+ {[%emt 0:00:34]} Qf6 {[%emt 0:00:28]} 34. Qd5 {[%emt 0:00:37]} Nxa4 {[%emt 0:01:14]} 35. gxf5 {[%emt 0:10:42]} gxf5 {[%emt 0:00:11]} 36. Qxf5 {[%emt 0:00:24]} Qg7+ {[%emt 0:00:46]} 37. Qg4 {[%emt 0:00:16]} Qd4 {[%emt 0:00:13]} 38. Qe2 {[%emt 0:00:48]} Nac5 {[%emt 0:02:46]} 39. Kh1 {[%emt 0:00:34]} d5 {[%emt 0:01:32]} 40. Qh5 {[%emt 0:00:00]} Nf2+ {[%emt 0:00:00]} 41. Rxf2 {[%emt 0:03:03]} Qxe3 {[%emt 0:03:52]} 42. Bf5 {[%emt 0:00:12]} Qe1+ {[%emt 0:01:20]} 43. Kg2 {[%emt 0:00:12]} Qe7 {[%emt 0:00:09]} 44. Re2 {[%emt 0:02:07]} 0-1